bitfinex/quotes_BTCUSD_20241211
["timestamp","ask_amount","ask_price","bid_price","bid_amount"]
[1733924960114,0.15,98726.0,98710.0,0.00025134]
[1733924960328,0.202601,98717.0,98710.0,0.00025134]
[1733924960752,0.202592,98721.0,98710.0,0.00025134]
[1733924961596,0.202591,98721.0,98710.0,0.00025134]
[1733924961801,0.00101166,98722.0,98710.0,0.00025134]
[1733924962017,0.00101166,98722.0,98710.0,0.00125134]
[1733924962316,0.32082942,98740.0,98711.0,0.202611]
[1733924962317,0.11827542,98740.0,98711.0,0.202611]
[1733924962566,0.202534,98749.0,98711.0,0.202611]
[1733924962567,0.1063369,98739.0,98712.0,0.202609]
[1733924962799,0.1063369,98739.0,98710.0,0.00225134]
[1733924962800,0.352556,98738.0,98713.0,0.00101287]
[1733924963017,0.352556,98738.0,98717.0,0.202598]
[1733924963018,0.5114529,98737.0,98717.0,0.202598]
[1733924963606,0.5114529,98737.0,98710.0,0.00025134]
[1733924963607,0.202553,98740.0,98718.0,0.00101289]
[1733924963886,0.00101166,98739.0,98719.0,0.1226]
[1733924964094,0.202533,98749.0,98720.0,0.00101284]
[1733924964300,0.11827542,98750.0,98720.0,0.00101284]
[1733924964301,0.202561,98736.0,98720.0,0.00101284]
[1733924965551,0.202554,98740.0,98721.0,0.202591]
[1733924965760,0.0001716,98760.0,98732.0,0.202567]
[1733924965966,0.10532524,98759.0,98726.0,0.00101271]
[1733924966201,0.202534,98749.0,98727.0,0.0824]
[1733924966407,0.001,98749.0,98732.0,0.202568]
[1733924966611,0.001,98749.0,98734.0,0.202564]
[1733924966821,0.202534,98749.0,98734.0,0.00101271]
[1733924967033,0.202542,98745.0,98734.0,0.00101271]
[1733924967238,0.202542,98745.0,98729.0,0.202573]
[1733924967239,0.405084,98745.0,98730.0,0.00101271]
[1733924967677,0.202542,98745.0,98730.0,0.00101271]
[1733924967888,0.20255,98741.0,98730.0,0.00101271]
[1733924968761,0.11928708,98740.0,98727.0,0.0824]
[1733924968974,0.202575,98729.0,98727.0,0.0824]
[1733924969184,0.22360066,98740.0,98702.0,0.54657789]
[1733924969185,0.202593,98720.0,98717.0,0.0808]
[1733924969394,0.405186,98720.0,98717.0,0.0808]
[1733924970094,0.15,98729.0,98706.0,0.0808]
[1733924970314,0.202611,98712.0,98706.0,0.0808]
[1733924970733,0.00101166,98728.0,98706.0,0.0808]
[1733924970956,0.10532524,98727.0,98706.0,0.0808]
[1733924971182,0.202599,98717.0,98706.0,0.0808]
[1733924971836,0.00101166,98726.0,98707.0,0.02122179]
[1733924972057,0.202594,98720.0,98707.0,0.22384079]
[1733924972259,0.202594,98720.0,98707.0,0.02122179]
[1733924973328,0.202594,98720.0,98707.0,0.22384079]
[1733924973531,0.00101166,98723.0,98707.0,0.22384079]
[1733924973783,0.202589,98722.0,98707.0,0.22384079]
[1733924973991,0.202589,98722.0,98710.0,0.00425134]
[1733924974196,0.202589,98722.0,98710.0,0.00225134]
[1733924974405,0.202589,98722.0,98710.0,0.00025134]
[1733924974607,0.00101166,98721.0,98710.0,0.00025134]
[1733924974811,0.202593,98720.0,98710.0,0.00025134]
[1733924975236,0.202593,98720.0,98710.0,0.00225134]
[1733924975517,0.00101166,98721.0,98710.0,0.00025134]
[1733924976205,0.202593,98720.0,98710.0,0.00025134]
[1733924976821,0.00101166,98721.0,98710.0,0.00225134]
[1733924977020,0.202593,98720.0,98710.0,0.00225134]
[1733924977381,0.00101166,98721.0,98720.0,0.202593]
[1733924977621,0.01020139,98743.0,98736.0,0.202559]
[1733924977622,0.0001716,98740.0,98736.0,0.202559]
[1733924977774,0.0001716,98740.0,98721.0,0.0482]
[1733924977775,0.0001716,98740.0,98739.0,0.202554]
[1733924977967,0.0001716,98740.0,98738.0,0.0759]
[1733924979392,0.0001716,98740.0,98738.0,0.272455]
[1733924979595,0.0001716,98740.0,98738.0,0.0699]
[1733924979795,0.0001716,98740.0,98738.0,0.272455]
[1733924980005,0.0001716,98740.0,98738.0,0.0699]
[1733924980270,0.0001716,98740.0,98738.0,0.0729]
[1733924980961,0.0001716,98740.0,98738.0,0.002]
[1733924981445,0.30787924,98739.0,98738.0,0.002]
[1733924981677,0.45787924,98739.0,98738.0,0.002]
[1733924982296,0.45787924,98739.0,98711.0,0.20311871]
[1733924982297,0.202568,98733.0,98712.0,0.202609]
[1733924982432,0.202568,98733.0,98714.0,0.202605]
[1733924982433,0.20257,98731.0,98714.0,0.202605]
[1733924982632,0.00126614,98730.0,98714.0,0.20311293]
[1733924982997,0.202574,98729.0,98714.0,0.00050793]
[1733924983229,0.202574,98729.0,98710.0,0.00025134]
[1733924983230,0.202593,98720.0,98710.0,0.00025134]
[1733924983429,0.10532524,98729.0,98710.0,0.00025134]
[1733924983631,0.00126621,98728.0,98710.0,0.00025134]
[1733924984381,0.202587,98723.0,98710.0,0.00325134]
[1733924984787,0.202591,98721.0,98710.0,0.00025134]
[1733924985227,0.202591,98721.0,98710.0,0.00125134]
[1733924985438,0.202599,98717.0,98710.0,0.00125134]
[1733924985646,0.202587,98723.0,98710.0,0.00125134]
[1733924985856,0.202591,98721.0,98710.0,0.00125134]
[1733924986067,0.00126621,98722.0,98710.0,0.00125134]
[1733924986268,0.202591,98721.0,98710.0,0.00125134]
[1733924986500,0.202599,98717.0,98710.0,0.00025134]
[1733924986698,0.202607,98714.0,98710.0,0.00325134]
[1733924986904,0.00126634,98713.0,98710.0,0.00425134]
[1733924987358,0.00126634,98713.0,98710.0,0.00325134]
[1733924987572,0.00126634,98713.0,98710.0,0.00025134]
[1733924987773,0.00126634,98713.0,98710.0,0.00525134]
[1733924988136,0.00126634,98713.0,98710.0,0.00225134]
[1733924988403,0.202609,98712.0,98710.0,0.00225134]
[1733924988521,0.202609,98712.0,98710.0,0.00425134]
[1733924989156,0.202609,98712.0,98710.0,0.00225134]
[1733924989354,0.00126634,98713.0,98710.0,0.00425134]
[1733924989563,0.202601,98716.0,98710.0,0.00025134]
[1733924989758,0.10659159,98719.0,98710.0,0.00025134]
[1733924989965,0.202599,98717.0,98710.0,0.00425134]
[1733924990399,0.202599,98717.0,98710.0,0.00025134]
[1733924990829,0.405199,98717.0,98710.0,0.00025134]
[1733924991000,0.09085599,98746.0,98710.0,0.00025134]
[1733924991001,0.202576,98728.0,98710.0,0.00025134]
[1733924991208,0.09085599,98752.0,98710.0,0.00760999]
[1733924991409,0.10532524,98737.0,98720.0,0.202592]
[1733924991585,0.10532524,98737.0,98711.0,0.08280781]
[1733924991586,0.11844702,98760.0,98712.0,0.202609]
[1733924991803,0.11844702,98760.0,98713.0,0.12883301]
[1733924991804,0.00126607,98756.0,98713.0,0.12883301]
[1733924992135,0.20254,98746.0,98725.0,0.09000672]
[1733924992308,0.202544,98744.0,98726.0,0.20308661]
[1733924992783,0.202544,98744.0,98726.0,0.00050761]
[1733924992784,0.2027236,98740.0,98726.0,0.00050761]
[1733924992929,0.2027236,98740.0,98731.0,0.019935]
[1733924993136,0.001,98738.0,98731.0,0.019935]
[1733924993599,0.2027236,98740.0,98731.0,0.019935]
[1733924993735,0.202563,98735.0,98726.0,0.00050761]
[1733924993940,0.30787924,98739.0,98726.0,0.001]
[1733924993941,0.00126607,98734.0,98726.0,0.001]
[1733924994141,0.202576,98729.0,98726.0,0.001]
[1733924994345,0.202576,98729.0,98718.0,0.00050777]
[1733924994573,0.202584,98724.0,98711.0,0.0823]
[1733924994726,0.00126608,98728.0,98711.0,0.0823]
[1733924994931,0.00126608,98728.0,98712.0,0.202609]
[1733924995135,0.00126608,98728.0,98711.0,0.0823]
[1733924995337,0.202578,98727.0,98711.0,0.0823]
[1733924995587,0.2038442,98727.0,98711.0,0.0823]
[1733924995906,0.0012662,98726.0,98711.0,0.0823]
[1733924996111,0.202597,98718.0,98711.0,0.0823]
[1733924996313,0.202597,98718.0,98711.0,0.0843]
[1733924996523,0.202597,98718.0,98711.0,0.0823]
[1733924996924,0.202597,98718.0,98711.0,0.11690371]
[1733924997189,0.202607,98714.0,98711.0,0.0823]
[1733924997386,0.405214,98714.0,98710.0,0.00025134]
[1733924998134,0.202607,98714.0,98710.0,0.00025134]
[1733924998980,0.15,98729.0,98710.0,0.00025134]
[1733924999249,0.001,98714.0,98710.0,0.00025134]
[1733924999423,0.202587,98723.0,98710.0,0.00025134]
[1733924999749,0.205606,98714.0,98711.0,0.001]
[1733925000043,0.202606,98714.0,98710.0,0.00025134]
[1733925000654,0.202601,98717.0,98710.0,0.00025134]
[1733925000909,0.10532524,98722.0,98710.0,0.00025134]
[1733925001160,0.202591,98721.0,98711.0,0.001]
[1733925001365,0.00126629,98721.0,98711.0,0.001]
[1733925001716,0.00126629,98721.0,98711.0,0.002]
[1733925001920,0.15,98728.0,98711.0,0.002]
[1733925001921,0.20259,98722.0,98711.0,0.002]
[1733925002127,0.20259,98722.0,98711.0,0.001]
[1733925002327,0.001,98721.0,98711.0,0.001]
[1733925002919,0.20259,98722.0,98710.0,0.00025134]
[1733925003163,0.046,98756.0,98712.0,0.202609]
[1733925003164,0.15,98730.0,98712.0,0.202609]
[1733925003367,0.15,98730.0,98710.0,0.00075949]
[1733925003368,0.15,98728.0,98710.0,0.00075949]
[1733925003569,0.2026,98717.0,98710.0,0.00075949]
[1733925003731,0.0012662,98727.0,98710.0,0.00025134]
[1733925003938,0.15,98728.0,98710.0,0.00025134]
[1733925003939,0.10659152,98726.0,98710.0,0.00025134]
[1733925004150,0.202605,98715.0,98710.0,0.00025134]
[1733925004351,0.202605,98715.0,98711.0,0.001]
[1733925004548,0.00126628,98720.0,98711.0,0.001]
[1733925004754,0.202587,98723.0,98711.0,0.001]
[1733925004962,0.15,98728.0,98711.0,0.001]
[1733925004963,0.0001716,98740.0,98716.0,0.202599]
[1733925005289,0.202568,98732.0,98717.0,0.08]
[1733925005507,0.202577,98728.0,98717.0,0.08]
[1733925005929,0.202584,98725.0,98717.0,0.08]
[1733925006884,0.0012662,98727.0,98717.0,0.08]
[1733925007086,0.202589,98722.0,98717.0,0.08]
[1733925007919,0.202589,98722.0,98717.0,0.081]
[1733925008713,0.202575,98729.0,98718.0,0.0081]
[1733925009108,0.30790024,98729.0,98718.0,0.0081]
[1733925009727,0.0012662,98728.0,98717.0,0.081]
[1733925009931,0.202578,98727.0,98717.0,0.081]
[1733925010134,0.202567,98733.0,98717.0,0.08]
[1733925010340,0.10532524,98732.0,98717.0,0.08]
[1733925010835,0.202579,98727.0,98717.0,0.08]
[1733925011106,0.202579,98727.0,98717.0,0.082]
[1733925011315,0.202568,98733.0,98717.0,0.081]
[1733925011705,0.002,98732.0,98718.0,0.202597]
[1733925011937,0.002,98732.0,98718.0,0.252397]
[1733925012161,0.002,98732.0,98718.0,0.0498]
[1733925012373,0.005,98727.0,98718.0,0.0498]
[1733925012595,0.20382411,98738.0,98726.0,0.0198838]
[1733925012596,0.00126611,98738.0,98726.0,0.0198838]
[1733925012814,0.202594,98720.0,98717.0,0.001]
[1733925013004,0.00126627,98719.0,98717.0,0.001]
[1733925013218,0.202597,98718.0,98716.0,0.01988582]
[1733925014366,0.202597,98718.0,98716.0,0.02088582]
[1733925014627,0.202594,98720.0,98716.0,0.02088582]
[1733925014898,0.10532524,98727.0,98716.0,0.01988582]
[1733925015089,0.0001716,98740.0,98716.0,0.01988582]
[1733925015090,0.20257,98731.0,98716.0,0.01988582]
[1733925015336,0.202583,98725.0,98716.0,0.02188582]
[1733925015577,0.202583,98725.0,98716.0,0.02088582]
[1733925016073,0.202583,98725.0,98716.0,0.02188582]
[1733925016302,0.202574,98729.0,98716.0,0.02088582]
[1733925016541,0.202574,98729.0,98716.0,0.01988582]
[1733925016783,0.15,98727.0,98716.0,0.01988582]
[1733925017026,0.15,98727.0,98710.0,0.00025134]
[1733925017027,0.10659151,98726.0,98710.0,0.00025134]
[1733925017269,0.202606,98714.0,98710.0,0.00025134]
[1733925017732,0.2565917,98713.0,98710.0,0.00025134]
[1733925018541,0.35792524,98711.0,98710.0,3.4e-07]
[1733925018832,0.202652,98691.0,98690.0,8.59e-05]
[1733925019084,0.53757724,98691.0,98690.0,8.59e-05]
[1733925019567,0.68757724,98691.0,98690.0,8.59e-05]
[1733925019572,0.86057654,98691.0,98690.0,8.59e-05]
[1733925020320,0.86057654,98691.0,98660.0,8.8e-07]
[1733925020321,0.202714,98661.0,98660.0,8.8e-07]
[1733925020832,0.15,98666.0,98660.0,8.8e-07]
[1733925021083,0.15,98665.0,98660.0,8.8e-07]
[1733925021863,0.20271,98663.0,98660.0,8.8e-07]
[1733925022106,0.20271,98663.0,98660.0,0.00016637]
[1733925022107,0.003,98661.0,98660.0,0.00016637]
[1733925022401,0.25759234,98661.0,98660.0,0.00016637]
[1733925022701,0.25632524,98661.0,98660.0,0.00016637]
[1733925023416,0.25532524,98661.0,98660.0,0.00016637]
[1733925023681,0.39110049,98700.0,98660.0,0.00016637]
[1733925023682,0.202689,98674.0,98660.0,0.00216637]
[1733925023929,0.15097542,98690.0,98660.0,0.00216637]
[1733925023930,0.202696,98670.0,98661.0,0.131]
[1733925024856,0.00126689,98688.0,98661.0,0.131]
[1733925025098,0.11827542,98700.0,98668.0,0.02011024]
[1733925025393,0.10532524,98687.0,98668.0,0.02011024]
[1733925025617,0.202678,98679.0,98668.0,0.02011024]
[1733925025868,0.202678,98679.0,98669.0,0.00666346]
[1733925025869,0.20394582,98678.0,98669.0,0.00666346]
[1733925026113,0.202688,98674.0,98668.0,0.02011024]
[1733925026368,0.202697,98670.0,98668.0,0.02011024]
[1733925026642,0.202688,98674.0,98668.0,0.02011024]
[1733925027176,0.202701,98668.0,98661.0,0.134]
[1733925027428,0.202701,98668.0,98661.0,0.131]
[1733925027671,0.202702,98667.0,98664.0,0.01990282]
[1733925028206,0.202702,98667.0,98665.0,0.00668122]
[1733925028470,0.20395991,98672.0,98665.0,0.00668122]
[1733925028708,0.40665291,98672.0,98665.0,0.00668122]
[1733925029269,0.202703,98667.0,98665.0,0.00668122]
[1733925030025,0.13752167,98666.0,98665.0,0.00668122]
[1733925030270,0.25659215,98666.0,98665.0,0.00668122]
[1733925030562,0.25659215,98666.0,98660.0,0.00016637]
[1733925030563,0.20271,98663.0,98660.0,0.00016637]
[1733925030812,0.202714,98661.0,98660.0,0.00016637]
[1733925031121,0.30930642,98661.0,98660.0,0.00016637]
[1733925031318,0.30803924,98661.0,98660.0,0.00016637]
[1733925033150,0.31203924,98661.0,98660.0,0.00016637]
[1733925033376,0.30803924,98661.0,98660.0,0.00016637]
[1733925033904,0.31003924,98661.0,98660.0,0.00016637]
[1733925034662,0.204714,98661.0,98660.0,0.00016637]
[1733925035068,0.202714,98661.0,98660.0,0.00016637]
[1733925035220,0.20398103,98661.0,98660.0,0.00016637]
[1733925036361,0.20598103,98661.0,98660.0,0.00016637]
[1733925036582,0.204714,98661.0,98660.0,0.00016637]
[1733925037019,0.206714,98661.0,98660.0,0.00016637]
[1733925037226,0.202714,98661.0,98660.0,0.00016637]
[1733925037483,0.20598104,98661.0,98660.0,0.00016637]
[1733925037687,0.204714,98661.0,98660.0,0.00016637]
[1733925038966,0.46003924,98661.0,98660.0,0.00016637]
[1733925039180,0.56158446,98661.0,98660.0,0.00016637]
[1733925039404,0.45803924,98661.0,98660.0,0.00016637]
[1733925039614,0.45903924,98661.0,98660.0,0.00016637]
[1733925040065,0.45803924,98661.0,98660.0,0.00016637]
[1733925040499,0.46003924,98661.0,98660.0,0.00016637]
[1733925040706,0.45903924,98661.0,98660.0,0.00016637]
[1733925041153,0.46203924,98661.0,98660.0,0.00016637]
[1733925041364,0.46303924,98661.0,98660.0,0.00016637]
[1733925041575,0.31303924,98661.0,98660.0,0.00016637]
[1733925041788,0.005,98661.0,98660.0,0.04856637]
[1733925042243,0.005,98661.0,98660.0,0.05182068]
[1733925042450,0.001,98661.0,98660.0,0.04633013]
[1733925042678,0.005,98661.0,98660.0,0.04633013]
[1733925043132,0.005,98661.0,98660.0,0.00325431]
[1733925043133,0.004,98661.0,98660.0,0.00325431]
[1733925043346,0.10932524,98661.0,98660.0,0.00625431]
[1733925043563,0.10659238,98661.0,98650.0,8.58e-05]
[1733925043773,0.10659239,98660.0,98650.0,0.00848378]
[1733925044071,0.202732,98652.0,98651.0,0.00345339]
[1733925044276,0.202732,98652.0,98650.0,0.00848378]
[1733925044717,0.40659169,98651.0,98650.0,2e-07]
[1733925044942,0.352755,98641.0,98640.0,8.57e-05]
[1733925045148,0.68878938,98641.0,98640.0,8.57e-05]
[1733925045590,0.87501526,98641.0,98640.0,8.57e-05]
[1733925047064,0.73101596,98641.0,98640.0,8.57e-05]
[1733925047272,0.73101596,98641.0,98640.0,0.0010857]
[1733925047273,0.89001526,98641.0,98640.0,0.0010857]
[1733925047486,0.88101526,98641.0,98640.0,8.57e-05]
[1733925047707,0.98011855,98641.0,98640.0,8.57e-05]
[1733925047918,0.98911855,98641.0,98640.0,0.0010857]
[1733925048335,0.91843955,98641.0,98640.0,0.0010857]
[1733925048758,0.95394296,98641.0,98640.0,0.0010857]
[1733925048970,0.95094296,98641.0,98640.0,8.57e-05]
[1733925049390,0.95994296,98641.0,98640.0,0.0010857]
[1733925049589,0.83983967,98641.0,98640.0,8.57e-05]
[1733925049747,0.84583967,98641.0,98640.0,8.57e-05]
[1733925049953,0.85483967,98641.0,98640.0,0.0010857]
[1733925050626,0.84883967,98641.0,98640.0,8.57e-05]
[1733925050782,0.84583967,98641.0,98640.0,8.57e-05]
[1733925050978,0.85483967,98641.0,98640.0,0.0010857]
[1733925051182,0.8837929,98641.0,98640.0,0.0010857]
[1733925052017,0.8777929,98641.0,98640.0,0.0010857]
[1733925052419,0.8837929,98641.0,98640.0,0.0010857]
[1733925052839,0.8687929,98641.0,98640.0,8.57e-05]
[1733925053052,0.8777929,98641.0,98640.0,0.0010857]
[1733925053284,0.8837929,98641.0,98640.0,0.0010857]
[1733925053706,0.202829,98605.0,98603.0,0.078443]
[1733925054127,0.202829,98605.0,98604.0,0.00646541]
[1733925054958,0.202829,98605.0,98604.0,0.00663091]
[1733925055550,0.30815424,98605.0,98604.0,0.00663091]
[1733925055743,0.30815424,98605.0,98604.0,0.0001655]
[1733925056151,0.32289738,98605.0,98604.0,0.0001655]
[1733925056330,0.30815424,98605.0,98604.0,0.0021655]
[1733925056731,0.30815424,98605.0,98604.0,0.0001655]
[1733925057140,0.30915424,98605.0,98604.0,0.0001655]
[1733925057348,0.31515424,98605.0,98604.0,0.0011655]
[1733925057557,0.33601894,98605.0,98604.0,0.0011655]
[1733925057759,0.30915424,98605.0,98604.0,0.0001655]
[1733925058346,0.30815424,98605.0,98604.0,0.0001655]
[1733925058771,0.30915424,98605.0,98604.0,0.0001655]
[1733925058979,0.31315424,98605.0,98604.0,0.0001655]
[1733925059330,0.30815424,98605.0,98604.0,0.0001655]
[1733925059539,0.001,98605.0,98604.0,0.0001655]
[1733925059748,0.005,98605.0,98604.0,0.0001655]
[1733925059978,0.001,98605.0,98604.0,0.0001655]
[1733925060180,0.00126772,98605.0,98604.0,0.0001655]
[1733925060383,0.00526772,98605.0,98604.0,0.0001655]
[1733925060584,0.00226772,98605.0,98604.0,0.0001655]
[1733925060999,0.16866663,98605.0,98604.0,0.0001655]
[1733925061204,0.31866663,98605.0,98604.0,0.0001655]
[1733925061410,0.31739891,98605.0,98604.0,0.0001655]
[1733925062143,0.31639891,98605.0,98604.0,0.0001655]
[1733925063190,0.28878534,98605.0,98604.0,0.0001655]
[1733925063394,0.15,98603.0,98600.0,2e-07]
[1733925063589,0.25532524,98601.0,98600.0,0.00016575]
[1733925063836,0.25532524,98601.0,98600.0,7.5e-07]
[1733925063837,0.40532454,98601.0,98600.0,7.5e-07]
[1733925064041,0.40532454,98601.0,98590.0,1.5e-07]
[1733925064042,0.15,98591.0,98590.0,1.5e-07]
[1733925064284,0.15,98591.0,98590.0,7.9e-07]
[1733925064285,0.95140501,98591.0,98590.0,7.9e-07]
[1733925064497,0.95140501,98591.0,98580.0,4.9e-07]
[1733925064498,0.6528773,98581.0,98580.0,4.9e-07]
[1733925064714,0.92675675,98581.0,98580.0,4.9e-07]
[1733925064914,0.94975675,98581.0,98580.0,4.9e-07]
[1733925065115,0.94975675,98581.0,98540.0,8.58e-05]
[1733925065116,0.4499993,98571.0,98570.0,9e-08]
[1733925065315,0.74687875,98571.0,98570.0,9e-08]
[1733925066167,0.82877875,98571.0,98570.0,9e-08]
[1733925066763,0.83777875,98571.0,98570.0,9e-08]
[1733925066967,0.88367875,98571.0,98570.0,9e-08]
[1733925067368,0.60758534,98571.0,98570.0,9e-08]
[1733925067575,0.68850795,98571.0,98570.0,9e-08]
[1733925067767,0.55396805,98571.0,98570.0,9e-08]
[1733925068025,0.56560795,98571.0,98570.0,9e-08]
[1733925068213,0.59906805,98571.0,98570.0,9e-08]
[1733925068992,0.65869321,98571.0,98570.0,9e-08]
[1733925069405,0.64969321,98571.0,98570.0,9e-08]
[1733925069605,0.65869321,98571.0,98570.0,9e-08]
[1733925070052,0.27460865,98571.0,98570.0,9e-08]
[1733925070851,0.26560865,98571.0,98570.0,9e-08]
[1733925071436,0.59906805,98571.0,98570.0,9e-08]
[1733925071644,0.73526216,98571.0,98570.0,9e-08]
[1733925072912,0.74426216,98571.0,98570.0,9e-08]
[1733925073125,0.84036545,98571.0,98570.0,9e-08]
[1733925073361,0.48416286,98571.0,98570.0,9e-08]
[1733925073575,0.57460795,98571.0,98570.0,9e-08]
[1733925073789,0.27460865,98571.0,98570.0,9e-08]
[1733925073999,0.26560865,98571.0,98570.0,9e-08]
[1733925074207,0.26560865,98571.0,98570.0,0.00100009]
[1733925074445,0.12460865,98571.0,98570.0,0.00100009]
[1733925074650,0.1155936,98571.0,98570.0,9e-08]
[1733925075967,0.1245936,98571.0,98570.0,0.02360009]
[1733925076185,0.1065936,98571.0,98570.0,0.02360009]
[1733925076617,0.1115936,98571.0,98570.0,0.01860009]
[1733925076897,0.2565936,98571.0,98570.0,0.01760009]
[1733925077177,0.25532524,98571.0,98570.0,0.01760009]
[1733925077640,0.25532524,98571.0,98570.0,0.09530009]
[1733925077641,0.10532524,98571.0,98570.0,0.09530009]
[1733925077854,0.11032524,98571.0,98570.0,0.1526301]
[1733925078077,0.00126818,98580.0,98570.0,0.16089799]
[1733925078299,0.006,98581.0,98570.0,0.16089799]
[1733925078941,0.006,98581.0,98579.0,0.202881]
[1733925079156,0.006,98581.0,98580.0,0.0782]
[1733925079362,0.006,98581.0,98580.0,0.13214062]
[1733925079784,0.006,98581.0,98580.0,0.13265204]
[1733925079987,0.0001718,98610.0,98590.0,0.20286]
[1733925080199,0.10333178,98609.0,98594.0,0.20285]
[1733925080406,0.00126782,98608.0,98594.0,0.20285]
[1733925080618,0.10457476,98607.0,98595.0,0.00614831]
[1733925081065,0.0001718,98610.0,98591.0,0.0821]
[1733925081066,0.00143959,98610.0,98591.0,0.0821]
[1733925081269,0.10468025,98609.0,98593.0,0.202854]
[1733925081474,0.10468025,98609.0,98591.0,0.284956]
[1733925081475,0.00126778,98609.0,98591.0,0.284956]
[1733925081678,0.0001718,98610.0,98594.0,0.00819966]
[1733925081679,0.00126772,98608.0,98594.0,0.00819966]
[1733925081886,0.0001718,98610.0,98594.0,0.202852]
[1733925081887,0.00126773,98607.0,98594.0,0.202852]
[1733925082089,0.0001718,98610.0,98595.0,0.21104694]
[1733925082815,0.0001718,98610.0,98595.0,0.00819694]
[1733925083029,0.00143953,98610.0,98595.0,0.00819694]
[1733925083236,0.00143953,98610.0,98599.0,0.02079943]
[1733925083665,0.00143953,98610.0,98600.0,0.00818334]
[1733925084080,0.0001718,98610.0,98600.0,0.00818334]
[1733925084724,0.00143953,98610.0,98600.0,0.00818334]
[1733925084927,0.00143953,98610.0,98599.0,0.02079943]
[1733925085130,0.00143953,98610.0,98601.0,0.00818062]
[1733925085355,0.00143953,98610.0,98601.0,0.00497617]
[1733925085571,0.00143953,98610.0,98601.0,0.00764382]
[1733925085779,0.00143953,98610.0,98599.0,0.02279943]
[1733925085780,0.00126773,98609.0,98599.0,0.02079943]
[1733925086209,0.00126773,98609.0,98599.0,0.02479943]
[1733925086450,0.00126773,98609.0,98600.0,0.00764553]
[1733925086701,0.0001718,98610.0,98600.0,0.00764553]
[1733925086924,0.0001718,98610.0,98606.0,0.202825]
[1733925087175,0.0001718,98610.0,98608.0,0.202823]
[1733925087587,0.0001718,98610.0,98609.0,0.00762086]
[1733925088419,0.0001718,98610.0,98609.0,0.05592086]
[1733925089353,0.0011718,98610.0,98609.0,0.06492086]
[1733925090024,0.0001718,98610.0,98609.0,0.2661461]
[1733925090237,0.00143913,98650.0,98615.0,0.1286]
[1733925090504,0.10373853,98650.0,98639.0,0.202758]
[1733925090735,0.0001718,98650.0,98640.0,0.0823]
[1733925090942,0.0001718,98650.0,98640.0,0.08983518]
[1733925091165,0.0001718,98650.0,98641.0,0.0479]
[1733925091392,0.0001718,98650.0,98641.0,0.06848276]
[1733925091618,0.00072464,98650.0,98642.0,0.21028274]
[1733925092043,0.00072464,98650.0,98646.0,0.202743]
[1733925092486,0.00072464,98650.0,98648.0,0.202741]
[1733925092919,0.00072464,98650.0,98649.0,0.00781165]
[1733925093358,0.00072464,98650.0,98646.0,0.405486]
[1733925093587,0.00072464,98650.0,98649.0,0.03081165]
[1733925093792,0.0001718,98670.0,98650.0,0.20113833]
[1733925093993,0.0001718,98670.0,98667.0,0.2027]
[1733925093994,0.00033757,98670.0,98667.0,0.2027]
[1733925094438,0.00033757,98670.0,98668.0,0.00775975]
[1733925095075,0.00033757,98670.0,98660.0,0.202716]
[1733925095281,0.00033757,98670.0,98669.0,0.00775703]
[1733925095488,0.00033757,98670.0,98660.0,0.20356045]
[1733925095719,0.00033757,98670.0,98651.0,0.0768]
[1733925095720,0.10532524,98669.0,98651.0,0.0768]
[1733925095936,0.00126702,98668.0,98661.0,0.00777877]
[1733925096185,0.00233757,98670.0,98659.0,0.19827668]
[1733925096391,0.00033757,98670.0,98667.0,0.2027]
[1733925096814,0.00233757,98670.0,98668.0,0.00775975]
[1733925097238,0.00233757,98670.0,98660.0,0.202716]
[1733925097510,0.00233757,98670.0,98669.0,0.00775703]
[1733925097716,0.00233757,98670.0,98660.0,0.20356045]
[1733925097717,0.00233757,98670.0,98661.0,0.00777877]
[1733925097929,0.00033757,98670.0,98669.0,0.00775703]
[1733925098212,0.00033757,98670.0,98662.0,0.202712]
[1733925098446,0.001,98668.0,98660.0,0.202716]
[1733925098658,0.00033757,98670.0,98660.0,0.20356045]
[1733925098886,0.00033757,98670.0,98662.0,0.202712]
[1733925099327,0.00033757,98670.0,98660.0,0.202716]
[1733925099547,0.00033757,98670.0,98662.0,0.003]
[1733925100011,0.202707,98665.0,98659.0,0.02013835]
[1733925100234,0.10659221,98664.0,98651.0,0.0768]
[1733925100451,0.10659221,98664.0,98640.0,0.0823]
[1733925100691,0.202741,98648.0,98647.0,0.02006828]
[1733925101100,0.202741,98648.0,98628.0,0.20278]
[1733925101101,0.10532524,98648.0,98625.0,0.1309]
[1733925101380,0.17813833,98660.0,98625.0,0.1309]
[1733925101381,0.10659257,98647.0,98625.0,0.1309]
[1733925101593,0.15,98646.0,98625.0,0.1309]
[1733925101795,0.15,98646.0,98610.0,8.58e-05]
[1733925101796,0.10659259,98645.0,98610.0,8.58e-05]
[1733925102035,0.202807,98616.0,98610.0,8.58e-05]
[1733925102254,0.202816,98612.0,98610.0,8.58e-05]
[1733925102466,0.00126763,98611.0,98610.0,8.58e-05]
[1733925102887,0.20281,98614.0,98610.0,8.58e-05]
[1733925103096,0.00126765,98613.0,98610.0,8.58e-05]
[1733925103322,0.00126765,98613.0,98610.0,0.00063864]
[1733925103323,0.202815,98612.0,98610.0,0.00063864]
[1733925103531,0.0012677,98611.0,98610.0,0.00063864]
[1733925104377,0.203807,98616.0,98611.0,0.202817]
[1733925104378,0.001,98616.0,98611.0,0.202817]
[1733925104592,0.001,98616.0,98610.0,0.00063864]
[1733925104593,0.001,98616.0,98613.0,0.1251]
[1733925104801,0.001,98616.0,98615.0,0.225808]
[1733925105004,0.00126718,98651.0,98634.0,0.202768]
[1733925105223,0.00126718,98651.0,98620.0,0.17813833]
[1733925105427,0.00143883,98670.0,98657.0,0.202721]
[1733925105641,0.202717,98660.0,98650.0,0.0461]
[1733925105876,0.10659224,98669.0,98658.0,0.00652645]
[1733925105877,0.00126705,98659.0,98658.0,0.00652645]
[1733925106124,0.00126704,98668.0,98650.0,0.0461]
[1733925106318,0.202713,98662.0,98658.0,0.00652645]
[1733925106530,0.202721,98658.0,98651.0,0.00654748]
[1733925106705,0.00126709,98657.0,98650.0,0.0461]
[1733925106913,0.00126709,98657.0,98651.0,0.00526475]
[1733925107135,0.00126709,98657.0,98651.0,0.00654658]
[1733925107367,0.00016574,98658.0,98631.0,0.0453]
[1733925107368,0.202744,98647.0,98631.0,0.0453]
[1733925107627,0.202747,98645.0,98631.0,0.0453]
[1733925107842,0.202764,98637.0,98624.0,0.0797]